[Event "TOP 12 FEMININ 2022 - Phase 1"]
[Site "MULHOUSE, France"]
[Date "2022.04.08"]
[Round "2.15"]
[White "GIROD  DOM, Sarah"]
[Black "MAISURADZE  BIS, Nino"]
[Result "0-1"]
[TimeControl "90 min +30 secondes par coup"]
[WhiteElo "1507"]
[BlackElo "2202"]

1. e4 {[%clk 01:30:39]} {[%emt 00:00:21]} c5 {[%clk 01:30:49]} {[%emt
00:00:12]} 2. Nc3 {[%clk 01:31:04]} {[%emt 00:00:05]} Nc6 {[%clk 01:31:16]}
{[%emt 00:00:03]} 3. Bb5 {[%clk 01:31:23]} {[%emt 00:00:11]} Nd4 {[%clk
01:31:32]} {[%emt 00:00:14]} 4. Bc4 {[%clk 01:31:42]} {[%emt 00:00:11]} a6
{[%emt 00:02:35]} 5. d3 {[%clk 01:31:27]} {[%emt 00:00:45]} b5 {[%clk
01:28:50]} {[%emt 00:01:07]} 6. Bb3 {[%clk 01:31:50]} {[%emt 00:00:07]} e6
{[%clk 01:24:06]} {[%emt 00:05:15]} 7. Nf3 {[%clk 01:31:27]} {[%emt 00:00:53]}
Nxb3 {[%clk 01:23:41]} {[%emt 00:00:54]} 8. axb3 {[%clk 01:31:50]} {[%emt
00:00:07]} Bb7 {[%clk 01:24:06]} {[%emt 00:00:05]} 9. e5 {[%clk 01:22:37]}
{[%emt 00:09:43]} d6 {[%clk 01:18:14]} {[%emt 00:06:22]} 10. O-O {[%clk
01:18:56]} {[%emt 00:04:10]} dxe5 {[%clk 01:15:01]} {[%emt 00:03:44]} 11. Nxe5
{[%clk 01:17:40]} {[%emt 00:01:46]} Bd6 {[%clk 01:14:54]} {[%emt 00:00:36]} 12.
Re1 {[%clk 01:09:50]} {[%emt 00:08:20]} Nf6 {[%clk 01:12:27]} {[%emt 00:02:58]}
13. Ng4 {[%clk 01:05:59]} {[%emt 00:04:21]} Qc7 {[%clk 01:00:58]} {[%emt
00:11:59]} 14. Ne4 {[%clk 00:43:37]} {[%emt 00:22:52]} Nxe4 {[%clk 00:48:46]}
{[%emt 00:12:42]} 15. dxe4 {[%clk 00:43:44]} {[%emt 00:00:23]} h5 {[%clk
00:42:44]} {[%emt 00:06:32]} 16. e5 {[%clk 00:43:43]} {[%emt 00:00:31]} Be7
{[%clk 00:41:13]} {[%emt 00:02:01]} 17. Ne3 {[%clk 00:42:31]} {[%emt 00:01:42]}
Rd8 {[%clk 00:37:27]} {[%emt 00:04:16]} 18. Bd2 {[%clk 00:36:33]} {[%emt
00:06:27]} Qxe5 {[%clk 00:37:25]} {[%emt 00:00:33]} 19. Bc3 {[%clk 00:36:56]}
{[%emt 00:00:06]} Qg5 {[%clk 00:35:55]} {[%emt 00:02:00]} 20. Qe2 {[%clk
00:36:15]} {[%emt 00:01:11]} O-O {[%clk 00:26:59]} {[%emt 00:09:26]} 21. f3
{[%clk 00:27:44]} {[%emt 00:09:01]} Bd6 {[%clk 00:26:29]} {[%emt 00:01:01]} 22.
Nf1 {[%clk 00:24:03]} {[%emt 00:04:11]} h4 {[%clk 00:23:22]} {[%emt 00:03:37]}
23. h3 {[%clk 00:22:19]} {[%emt 00:02:13]} Rd7 {[%clk 00:21:15]} {[%emt
00:02:38]} 24. Be5 {[%clk 00:21:58]} {[%emt 00:00:52]} Bxf3 {[%clk 00:10:10]}
{[%emt 00:11:34]} 25. Qxf3 {[%clk 00:20:34]} {[%emt 00:01:54]} Bxe5 {[%clk
00:10:39]} {[%emt 00:00:01]} 26. Rxa6 {[%clk 00:20:30]} {[%emt 00:00:34]} Bxb2
{[%clk 00:08:31]} {[%emt 00:02:37]} 27. Ra5 {[%clk 00:18:09]} {[%emt 00:02:52]}
Bd4+ {[%clk 00:08:39]} {[%emt 00:00:22]} 28. Kh1 {[%clk 00:18:25]} {[%emt
00:00:14]} b4 {[%clk 00:08:57]} {[%emt 00:00:12]} 29. Re4 {[%clk 00:13:49]}
{[%emt 00:05:06]} Rd5 {[%clk 00:08:51]} {[%emt 00:00:35]} 30. Rg4 {[%clk
00:13:59]} {[%emt 00:00:20]} Qc1 {[%clk 00:08:21]} {[%emt 00:00:59]} 31. Rxh4
{[%clk 00:12:38]} {[%emt 00:01:52]} Rf5 {[%clk 00:08:33]} {[%emt 00:00:18]} 32.
Qe4 {[%clk 00:08:40]} {[%emt 00:04:29]} Qxf1+ {[%clk 00:08:40]} {[%emt
00:00:23]} 33. Kh2 {[%clk 00:09:04]} {[%emt 00:00:05]} Be5+ {[%clk 00:08:53]}
{[%emt 00:00:17]} 0-1

[Event "TOP 12 FEMININ 2022 - Phase 1"]
[Site "MULHOUSE, France"]
[Date "2022.04.08"]
[Round "2.16"]
[White "BELLAHCENE BIS, Sofia"]
[Black "LANGER  DOM, Karele"]
[Result "1-0"]
[TimeControl "90 min +30 secondes par coup"]
[WhiteElo "1840"]
[BlackElo "1476"]

1. e4 {[%clk 01:30:53]} {[%emt 00:00:06]} c5 {[%clk 01:30:43]} {[%emt
00:00:18]} 2. Nf3 {[%clk 01:31:03]} {[%emt 00:00:21]} e6 {[%clk 01:31:05]}
{[%emt 00:00:08]} 3. d4 {[%clk 01:30:48]} {[%emt 00:00:44]} cxd4 {[%clk
01:31:22]} {[%emt 00:00:14]} 4. Nxd4 {[%clk 01:31:07]} {[%emt 00:00:09]} Nf6
{[%clk 01:31:27]} {[%emt 00:00:26]} 5. Nc3 {[%clk 01:30:59]} {[%emt 00:00:38]}
d6 {[%clk 01:31:00]} {[%emt 00:00:57]} 6. Nb3 {[%clk 01:29:57]} {[%emt
00:01:32]} Be7 {[%clk 01:26:55]} {[%emt 00:04:35]} 7. Be3 {[%clk 01:29:32]}
{[%emt 00:00:55]} O-O {[%clk 01:23:19]} {[%emt 00:04:06]} 8. f4 {[%clk
01:25:38]} {[%emt 00:04:24]} a6 {[%clk 01:18:28]} {[%emt 00:05:21]} 9. Qf3
{[%clk 01:21:44]} {[%emt 00:04:23]} Nc6 {[%clk 01:11:46]} {[%emt 00:07:11]} 10.
g4 {[%clk 01:16:36]} {[%emt 00:05:39]} Na5 {[%clk 00:57:34]} {[%emt 00:14:42]}
11. g5 {[%clk 01:01:52]} {[%emt 00:15:14]} Nd7 {[%clk 00:55:35]} {[%emt
00:02:29]} 12. Bd2 {[%clk 00:58:53]} {[%emt 00:03:29]} Nxb3 {[%clk 00:54:15]}
{[%emt 00:01:49]} 13. axb3 {[%clk 00:58:49]} {[%emt 00:00:35]} Nc5 {[%clk
00:51:08]} {[%emt 00:03:37]} 14. h4 {[%clk 00:56:16]} {[%emt 00:03:04]} a5
{[%clk 00:36:06]} {[%emt 00:15:31]} 15. b4 {[%clk 00:55:12]} {[%emt 00:01:34]}
Nd7 {[%clk 00:35:12]} {[%emt 00:01:23]} 16. h5 {[%clk 00:46:17]} {[%emt
00:09:26]} e5 {[%clk 00:27:43]} {[%emt 00:07:59]} 17. g6 {[%clk 00:34:49]}
{[%emt 00:11:58]} Bh4+ {[%clk 00:16:48]} {[%emt 00:11:26]} 18. Kd1 {[%clk
00:33:22]} {[%emt 00:01:56]} exf4 {[%clk 00:16:23]} {[%emt 00:00:54]} 19. gxf7+
{[%clk 00:31:27]} {[%emt 00:02:25]} Kh8 {[%clk 00:15:48]} {[%emt 00:01:05]} 20.
Qxf4 {[%clk 00:31:09]} {[%emt 00:00:48]} Be7 {[%clk 00:13:12]} {[%emt
00:03:06]} 21. Nd5 {[%clk 00:29:22]} {[%emt 00:02:17]} Ne5 {[%clk 00:12:24]}
{[%emt 00:01:18]} 22. h6 {[%clk 00:27:41]} {[%emt 00:02:11]} Rxf7 {[%clk
00:10:51]} {[%emt 00:02:04]} 23. hxg7+ {[%clk 00:26:44]} {[%emt 00:01:28]} Rxg7
{[%clk 00:11:13]} {[%emt 00:00:07]} 24. Bc3 {[%clk 00:23:54]} {[%emt 00:03:19]}
Bg5 {[%clk 00:08:11]} {[%emt 00:03:32]} 25. Qh2 {[%clk 00:21:24]} {[%emt
00:03:00]} Bg4+ {[%clk 00:05:27]} {[%emt 00:03:14]} 26. Be2 {[%clk 00:20:34]}
{[%emt 00:01:21]} Bxe2+ {[%clk 00:05:39]} {[%emt 00:00:18]} 27. Kxe2 {[%clk
00:20:19]} {[%emt 00:00:45]} Qd7 {[%clk 00:04:22]} {[%emt 00:01:47]} 28. Qh3
{[%clk 00:12:04]} {[%emt 00:08:44]} Qb5+ {[%clk 00:03:36]} {[%emt 00:01:16]} 29.
Kd1 {[%clk 00:11:11]} {[%emt 00:01:23]} Rf8 {[%clk 00:03:00]} {[%emt 00:01:06]}
30. Rxa5 {[%clk 00:10:23]} {[%emt 00:01:19]} Qc4 {[%clk 00:02:48]} {[%emt
00:00:42]} 31. Bxe5 {[%clk 00:09:24]} {[%emt 00:01:28]} dxe5 {[%clk 00:02:43]}
{[%emt 00:00:36]} 32. Qd3 {[%clk 00:03:29]} {[%emt 00:06:25]} Qc8 {[%clk
00:02:48]} {[%emt 00:00:22]} 33. Ne3 {[%clk 00:03:50]} {[%emt 00:00:11]} Rd8
{[%clk 00:03:05]} {[%emt 00:00:13]} 34. Rd5 {[%clk 00:04:13]} {[%emt 00:00:08]}
Rxd5 {[%clk 00:03:15]} {[%emt 00:00:19]} 35. exd5 {[%clk 00:04:35]} {[%emt
00:00:09]} Bxe3 {[%clk 00:03:24]} {[%emt 00:00:20]} 36. Qxe3 {[%clk 00:04:55]}
{[%emt 00:00:11]} Qg4+ {[%clk 00:03:35]} {[%emt 00:00:19]} 37. Kc1 {[%clk
00:04:56]} {[%emt 00:00:29]} Qf4 {[%clk 00:03:32]} {[%emt 00:00:33]} 38. Qxf4
{[%clk 00:05:20]} {[%emt 00:00:05]} exf4 {[%clk 00:03:57]} {[%emt 00:00:05]} 39.
c4 {[%clk 00:04:40]} {[%emt 00:01:10]} f3 {[%clk 00:03:34]} {[%emt 00:00:53]}
40. Rf1 {[%clk 00:05:05]} {[%emt 00:00:05]} Rf7 {[%clk 00:03:38]} {[%emt
00:00:26]} 41. Kd2 {[%clk 00:05:33]} {[%emt 00:00:02]} Rf4 {[%clk 00:03:32]}
{[%emt 00:00:36]} 42. b3 {[%clk 00:05:56]} {[%emt 00:00:07]} Kg7 {[%clk
00:02:54]} {[%emt 00:01:08]} 43. Ke3 {[%clk 00:06:22]} {[%emt 00:00:05]} Rf7
{[%clk 00:03:05]} {[%emt 00:00:18]} 44. Rxf3 {[%clk 00:06:46]} {[%emt
00:00:07]} Rxf3+ {[%clk 00:03:26]} {[%emt 00:00:09]} 45. Kxf3 {[%clk 00:07:11]}
{[%emt 00:00:04]} Kf7 {[%clk 00:03:53]} {[%emt 00:00:03]} 46. c5 {[%clk
00:07:29]} {[%emt 00:00:12]} Ke7 {[%clk 00:04:12]} {[%emt 00:00:12]} 47. c6
{[%clk 00:07:34]} {[%emt 00:00:24]} Kd8 {[%clk 00:04:06]} {[%emt 00:00:36]} 48.
b5 {[%clk 00:07:55]} {[%emt 00:00:10]} Ke7 {[%emt 00:00:57]} 49. Ke4 1-0

[Event "TOP 12 FEMININ 2022 - Phase 1"]
[Site "MULHOUSE, France"]
[Date "2022.04.08"]
[Round "2.17"]
[White "KOVACS  STR, Klara"]
[Black "GUICHARD  ASN, Pauline"]
[Result "0-1"]
[TimeControl "90 min +30 secondes par coup"]
[WhiteElo "2117"]
[BlackElo "2371"]

1. c4 {[%clk 01:30:57]} {[%emt 00:00:02]} Nf6 {[%clk 01:30:47]} {[%emt
00:00:13]} 2. Nc3 {[%clk 01:31:20]} {[%emt 00:00:07]} e5 {[%clk 01:31:08]}
{[%emt 00:00:09]} 3. g3 {[%clk 01:31:44]} {[%emt 00:00:07]} Bb4 {[%clk
01:29:58]} {[%emt 00:01:40]} 4. Bg2 {[%clk 01:26:55]} {[%emt 00:05:18]} O-O
{[%clk 01:27:47]} {[%emt 00:02:40]} 5. Nd5 {[%clk 01:26:11]} {[%emt 00:01:15]}
Bc5 {[%clk 01:22:59]} {[%emt 00:05:19]} 6. d3 {[%clk 01:23:28]} {[%emt
00:03:12]} c6 {[%clk 01:22:07]} {[%emt 00:01:22]} 7. Nxf6+ {[%clk 01:22:31]}
{[%emt 00:01:27]} Qxf6 {[%clk 01:22:30]} {[%emt 00:00:08]} 8. e3 {[%clk
01:22:36]} {[%emt 00:00:24]} Rd8 {[%clk 01:16:57]} {[%emt 00:06:03]} 9. Bd2
{[%clk 01:20:23]} {[%emt 00:02:43]} d5 {[%clk 01:12:15]} {[%emt 00:05:12]} 10.
b4 {[%clk 01:20:13]} {[%emt 00:00:41]} Bf8 {[%clk 01:12:21]} {[%emt 00:00:23]}
11. c5 {[%clk 01:10:15]} {[%emt 00:10:28]} a5 {[%clk 01:11:26]} {[%emt
00:01:25]} 12. a3 {[%clk 01:10:09]} {[%emt 00:00:36]} axb4 {[%clk 00:59:53]}
{[%emt 00:12:03]} 13. axb4 {[%clk 01:10:22]} {[%emt 00:00:17]} Rxa1 {[%clk
01:00:19]} {[%emt 00:00:05]} 14. Qxa1 {[%clk 01:10:44]} {[%emt 00:00:08]} Bf5
{[%clk 01:00:43]} {[%emt 00:00:04]} 15. Nf3 {[%clk 01:03:38]} {[%emt 00:07:37]}
Bxd3 {[%clk 00:52:57]} {[%emt 00:08:16]} 16. Qxe5 {[%clk 00:56:01]} {[%emt
00:08:07]} Qg6 {[%clk 00:39:26]} {[%emt 00:14:01]} 17. Bf1 {[%clk 00:40:42]}
{[%emt 00:15:48]} Nd7 {[%clk 00:37:12]} {[%emt 00:02:45]} 18. Qd4 {[%clk
00:38:38]} {[%emt 00:02:33]} Bc4 {[%clk 00:29:10]} {[%emt 00:08:33]} 19. Bxc4
{[%clk 00:38:48]} {[%emt 00:00:20]} Qb1+ {[%clk 00:29:33]} {[%emt 00:00:07]} 20.
Ke2 {[%clk 00:39:14]} {[%emt 00:00:05]} Qxh1 {[%clk 00:29:59]} {[%emt
00:00:04]} 21. Bd3 {[%clk 00:39:35]} {[%emt 00:00:08]} Be7 {[%clk 00:28:29]}
{[%emt 00:02:01]} 22. Qf4 {[%clk 00:34:05]} {[%emt 00:05:59]} Qa1 {[%clk
00:28:33]} {[%emt 00:00:26]} 23. Nd4 {[%clk 00:33:09]} {[%emt 00:01:26]} Bf6
{[%clk 00:21:54]} {[%emt 00:07:09]} 24. Nf5 {[%clk 00:32:31]} {[%emt 00:01:08]}
Ne5 {[%clk 00:17:08]} {[%emt 00:05:16]} 25. Nh6+ {[%clk 00:29:02]} {[%emt
00:03:59]} Kf8 {[%clk 00:17:32]} {[%emt 00:00:06]} 26. Bxh7 {[%clk 00:28:06]}
{[%emt 00:01:26]} Qa6+ {[%clk 00:17:37]} {[%emt 00:00:25]} 27. Ke1 {[%clk
00:22:47]} {[%emt 00:05:49]} d4 {[%clk 00:17:43]} {[%emt 00:00:24]} 28. Ng4
{[%clk 00:12:36]} {[%emt 00:10:40]} Qa1+ {[%clk 00:15:24]} {[%emt 00:02:50]} 29.
Ke2 {[%clk 00:10:59]} {[%emt 00:02:07]} d3+ {[%clk 00:15:42]} {[%emt 00:00:12]}
0-1

[Event "TOP 12 FEMININ 2022 - Phase 1"]
[Site "MULHOUSE, France"]
[Date "2022.04.08"]
[Round "2.18"]
[White "MOINGT  ASN, Anne"]
[Black "ROOS  STR, Louise"]
[Result "1-0"]
[TimeControl "90 min +30 secondes par coup"]
[WhiteElo "2036"]
[BlackElo "1803"]

1. e4 {[%clk 01:30:58]} {[%emt 00:00:01]} e6 {[%clk 01:30:57]} {[%emt
00:00:03]} 2. d4 {[%clk 01:31:20]} {[%emt 00:00:08]} d5 {[%clk 01:31:21]}
{[%emt 00:00:07]} 3. Nd2 {[%clk 01:31:10]} {[%emt 00:00:40]} dxe4 {[%clk
01:31:38]} {[%emt 00:00:12]} 4. Nxe4 {[%clk 01:31:35]} {[%emt 00:00:05]} Bd7
{[%clk 01:31:48]} {[%emt 00:00:20]} 5. Nf3 {[%clk 01:29:23]} {[%emt 00:02:43]}
Bc6 {[%clk 01:32:13]} {[%emt 00:00:05]} 6. Ned2 {[%clk 01:26:32]} {[%emt
00:03:21]} Nd7 {[%clk 01:30:03]} {[%emt 00:02:39]} 7. Bd3 {[%clk 01:24:34]}
{[%emt 00:02:28]} Ngf6 {[%clk 01:25:27]} {[%emt 00:05:06]} 8. O-O {[%clk
01:22:38]} {[%emt 00:02:27]} Be7 {[%clk 01:25:05]} {[%emt 00:00:51]} 9. Nc4
{[%clk 01:21:18]} {[%emt 00:01:50]} Bxf3 {[%clk 01:20:55]} {[%emt 00:04:41]} 10.
Qxf3 {[%clk 01:21:37]} {[%emt 00:00:11]} c6 {[%clk 01:21:19]} {[%emt 00:00:05]}
11. c3 {[%clk 01:16:28]} {[%emt 00:05:39]} a5 {[%clk 01:15:20]} {[%emt
00:06:28]} 12. Bf4 {[%clk 01:12:24]} {[%emt 00:04:35]} O-O {[%clk 01:10:06]}
{[%emt 00:05:44]} 13. Rad1 {[%clk 01:11:14]} {[%emt 00:01:40]} Nb6 {[%clk
01:00:57]} {[%emt 00:09:39]} 14. Ne5 {[%clk 01:10:00]} {[%emt 00:01:44]} Nbd5
{[%clk 01:00:28]} {[%emt 00:01:00]} 15. Bc1 {[%clk 01:09:08]} {[%emt 00:01:21]}
Qc8 {[%clk 00:43:45]} {[%emt 00:17:13]} 16. Rfe1 {[%clk 01:02:32]} {[%emt
00:07:06]} Bd6 {[%clk 00:39:12]} {[%emt 00:05:03]} 17. Qh3 {[%clk 01:00:47]}
{[%emt 00:02:16]} Ne7 {[%clk 00:31:04]} {[%emt 00:08:37]} 18. Bg5 {[%clk
00:51:52]} {[%emt 00:09:25]} Ng6 {[%clk 00:31:32]} {[%emt 00:00:03]} 19. Bxf6
{[%clk 00:45:57]} {[%emt 00:06:25]} gxf6 {[%clk 00:32:00]} {[%emt 00:00:02]} 20.
Nxg6 {[%clk 00:46:17]} {[%emt 00:00:10]} hxg6 {[%clk 00:27:26]} {[%emt
00:05:03]} 21. Qh6 {[%clk 00:45:25]} {[%emt 00:01:23]} Re8 {[%clk 00:16:29]}
{[%emt 00:11:26]} 22. Bxg6 {[%clk 00:42:24]} {[%emt 00:03:31]} fxg6 {[%clk
00:16:58]} {[%emt 00:00:02]} 23. Qxg6+ {[%clk 00:42:50]} {[%emt 00:00:04]} Kf8
{[%clk 00:17:13]} {[%emt 00:00:14]} 24. Qxf6+ {[%clk 00:43:05]} {[%emt
00:00:15]} Kg8 {[%clk 00:17:39]} {[%emt 00:00:04]} 25. Re4 {[%clk 00:42:18]}
{[%emt 00:01:17]} 1-0

[Event "TOP 12 FEMININ 2022 - Phase 1"]
[Site "MULHOUSE, France"]
[Date "2022.04.08"]
[Round "2.19"]
[White "OLGUIN  STR, Monica"]
[Black "STRASSER ASN, Arevik"]
[Result "1/2-1/2"]
[TimeControl "90 min +30 secondes par coup"]
[WhiteElo "1674"]
[BlackElo "1543"]

1. e4 {[%clk 01:30:58]} {[%emt 00:00:01]} e5 {[%clk 01:30:52]} {[%emt
00:00:08]} 2. Nf3 {[%clk 01:31:16]} {[%emt 00:00:11]} Nc6 {[%clk 01:31:17]}
{[%emt 00:00:06]} 3. d4 {[%clk 01:31:12]} {[%emt 00:00:34]} exd4 {[%clk
01:31:39]} {[%emt 00:00:08]} 4. Nxd4 {[%clk 01:31:29]} {[%emt 00:00:13]} Bc5
{[%clk 01:31:58]} {[%emt 00:00:12]} 5. Be3 {[%clk 01:31:17]} {[%emt 00:00:41]}
Qf6 {[%clk 01:31:52]} {[%emt 00:00:36]} 6. c3 {[%clk 01:30:50]} {[%emt
00:00:57]} Nge7 {[%clk 01:31:27]} {[%emt 00:00:55]} 7. Qd2 {[%clk 01:28:05]}
{[%emt 00:03:15]} d5 {[%clk 01:12:06]} {[%emt 00:19:51]} 8. Nxc6 {[%clk
01:12:41]} {[%emt 00:15:54]} Qxc6 {[%clk 01:11:05]} {[%emt 00:01:31]} 9. Bxc5
{[%clk 01:08:58]} {[%emt 00:04:13]} Qxc5 {[%clk 01:11:07]} {[%emt 00:00:27]} 10.
exd5 {[%clk 01:04:32]} {[%emt 00:04:57]} Qxd5 {[%clk 01:08:22]} {[%emt
00:03:16]} 11. Qxd5 {[%clk 01:02:04]} {[%emt 00:02:57]} Nxd5 {[%clk 01:08:43]}
{[%emt 00:00:09]} 12. Bc4 {[%clk 01:01:20]} {[%emt 00:01:14]} Nb6 {[%clk
01:05:46]} {[%emt 00:03:27]} 13. Nd2 {[%clk 00:57:04]} {[%emt 00:04:46]} Nxc4
{[%clk 01:04:01]} {[%emt 00:02:15]} 14. Nxc4 {[%clk 00:57:26]} {[%emt
00:00:08]} Be6 {[%clk 01:04:07]} {[%emt 00:00:23]} 15. Ne3 {[%clk 00:57:06]}
{[%emt 00:00:50]} O-O-O {[%clk 01:03:47]} {[%emt 00:00:51]} 16. Ke2 {[%clk
00:46:35]} {[%emt 00:11:00]} Rd6 {[%clk 01:00:58]} {[%emt 00:03:20]} 17. b3
{[%clk 00:44:19]} {[%emt 00:02:46]} Rhd8 {[%clk 00:58:55]} {[%emt 00:02:33]} 18.
Rhd1 {[%clk 00:44:12]} {[%emt 00:00:36]} Rxd1 {[%clk 00:41:14]} {[%emt
00:18:12]} 19. Rxd1 {[%clk 00:44:35]} {[%emt 00:00:07]} Rxd1 {[%clk 00:41:38]}
{[%emt 00:00:06]} 20. Kxd1 {[%clk 00:44:54]} {[%emt 00:00:10]} Kd7 {[%clk
00:41:50]} {[%emt 00:00:18]} 21. Kd2 {[%clk 00:45:00]} {[%emt 00:00:25]} h5
{[%clk 00:34:03]} {[%emt 00:08:17]} 22. f4 {[%clk 00:40:23]} {[%emt 00:05:06]}
g6 {[%clk 00:32:49]} {[%emt 00:01:44]} 23. g3 {[%clk 00:40:12]} {[%emt
00:00:42]} Kd6 {[%clk 00:29:11]} {[%emt 00:04:08]} 24. Kd3 {[%clk 00:39:26]}
{[%emt 00:01:17]} f6 {[%clk 00:13:21]} {[%emt 00:16:20]} 25. Ke4 {[%clk
00:32:00]} {[%emt 00:07:56]} f5+ {[%clk 00:12:24]} {[%emt 00:01:27]} 26. Kd4
{[%clk 00:27:29]} {[%emt 00:05:00]} c5+ {[%clk 00:02:33]} {[%emt 00:10:21]} 27.
Kd3 {[%clk 00:27:05]} {[%emt 00:00:54]} b6 {[%clk 00:02:25]} {[%emt 00:00:37]}
28. c4 {[%clk 00:24:03]} {[%emt 00:03:32]} Bf7 {[%clk 00:02:19]} {[%emt
00:00:37]} 29. Nd1 {[%clk 00:22:55]} {[%emt 00:01:37]} Be8 {[%clk 00:01:51]}
{[%emt 00:00:58]} 30. Nf2 {[%clk 00:19:41]} {[%emt 00:03:44]} Bf7 {[%clk
00:01:12]} {[%emt 00:01:09]} 31. Kc3 {[%clk 00:18:47]} {[%emt 00:01:25]} a5
{[%clk 00:00:55]} {[%emt 00:00:47]} 32. Nd3 {[%clk 00:17:49]} {[%emt 00:01:27]}
Be8 {[%clk 00:00:54]} {[%emt 00:00:31]} 33. Ne5 {[%clk 00:17:44]} {[%emt
00:00:35]} Ke6 {[%clk 00:01:02]} {[%emt 00:00:21]} 34. a3 {[%clk 00:16:39]}
{[%emt 00:01:36]} Kd6 {[%clk 00:01:26]} {[%emt 00:00:06]} 35. Nd3 {[%clk
00:13:42]} {[%emt 00:03:26]} Kc6 {[%clk 00:01:03]} {[%emt 00:00:53]} 36. Ne5+
{[%clk 00:12:09]} {[%emt 00:02:04]} Kd6 {[%clk 00:01:21]} {[%emt 00:00:12]} 37.
Kd3 {[%clk 00:12:01]} {[%emt 00:00:38]} Ke6 {[%clk 00:01:24]} {[%emt 00:00:26]}
38. Ke3 {[%clk 00:11:47]} {[%emt 00:00:44]} Kd6 {[%clk 00:01:29]} {[%emt
00:00:25]} 39. Kd2 {[%clk 00:09:07]} {[%emt 00:03:10]} Ke6 {[%clk 00:01:57]}
{[%emt 00:00:03]} 1/2-1/2